bitfinex/quotes_BTCUSD_20230907
["timestamp","ask_amount","ask_price","bid_price","bid_amount"]
[1694122784243,0.006,26196.0,26195.0,2.12803281]
[1694122784539,0.006,26196.0,26195.0,2.88919681]
[1694122784752,0.006,26196.0,26195.0,2.89441681]
[1694122784965,0.22247888,26201.0,26196.0,0.08]
[1694122785184,0.22247888,26201.0,26197.0,0.03020199]
[1694122785395,0.19539038,26200.0,26197.0,0.03020199]
[1694122785602,0.19539038,26200.0,26197.0,0.07278]
[1694122785821,0.1831599,26199.0,26196.0,0.15932]
[1694122786039,0.1831599,26199.0,26196.0,0.14492]
[1694122786253,0.004,26201.0,26197.0,0.023]
[1694122786468,0.24527983,26201.0,26197.0,0.023]
[1694122786691,0.24327983,26201.0,26196.0,0.16874]
[1694122786913,0.002,26199.0,26196.0,0.19174]
[1694122787121,0.002,26199.0,26196.0,0.1675]
[1694122787349,0.002,26199.0,26196.0,0.16726]
[1694122787560,0.002,26199.0,26196.0,0.1693]
[1694122787770,0.002,26199.0,26196.0,0.17188]
[1694122788004,0.002,26199.0,26197.0,0.38855322]
[1694122788213,0.3,26203.0,26197.0,1.23190422]
[1694122788477,0.002,26199.0,26198.0,0.10676199]
[1694122788711,0.002,26199.0,26198.0,0.46385322]
[1694122788992,0.002,26199.0,26198.0,0.46427322]
[1694122789236,0.002,26199.0,26198.0,0.46043322]
[1694122789507,0.002,26199.0,26198.0,0.38855322]
[1694122789746,0.19461958,26201.0,26198.0,0.38855322]
[1694122789980,0.19461958,26201.0,26198.0,0.45977322]
[1694122790215,0.004,26199.0,26198.0,0.50803322]
[1694122790462,0.004,26199.0,26198.0,0.11162]
[1694122790701,0.004,26199.0,26198.0,0.047]
[1694122791407,0.34,26203.0,26197.0,0.1514]
[1694122791663,0.04,26203.0,26198.0,0.03020199]
[1694122791903,0.04,26203.0,26198.0,0.07720199]
[1694122791904,0.004,26201.0,26198.0,0.07720199]
[1694122792096,0.002,26201.0,26198.0,0.024]
[1694122792313,0.002,26199.0,26198.0,0.023]
[1694122792543,0.002,26199.0,26197.0,0.73179322]
[1694122792775,0.04,26203.0,26197.0,0.73185322]
[1694122792976,0.041,26203.0,26198.0,0.007]
[1694122793190,0.04,26203.0,26198.0,0.03020199]
[1694122793404,0.002,26201.0,26198.0,0.05420199]
[1694122793646,0.002,26201.0,26198.0,0.024]
[1694122794598,0.002,26199.0,26198.0,0.047]
[1694122794828,0.002,26201.0,26198.0,0.024]
[1694122795069,0.002,26201.0,26198.0,0.023]
[1694122795550,0.002,26201.0,26198.0,0.029]
[1694122795788,0.002,26201.0,26198.0,0.109]
[1694122796014,0.002,26201.0,26198.0,0.103]
[1694122796252,0.004,26201.0,26198.0,0.19146]
[1694122796490,0.004,26201.0,26198.0,0.1935]
[1694122796784,0.002,26201.0,26198.0,0.103]
[1694122797018,0.002,26201.0,26198.0,0.128]
[1694122797019,0.004,26201.0,26198.0,0.128]
[1694122797479,0.004,26201.0,26198.0,0.1922]
[1694122797719,0.004,26201.0,26198.0,0.128]
[1694122797946,0.002,26201.0,26198.0,0.16938]
[1694122798147,0.002,26201.0,26198.0,0.105]
[1694122798389,0.002,26201.0,26198.0,0.104]
[1694122798607,0.002,26201.0,26198.0,0.105]
[1694122798829,0.004,26201.0,26198.0,0.129]
[1694122799928,0.004,26201.0,26198.0,0.19374]
[1694122800152,0.004,26201.0,26198.0,0.19458]
[1694122800443,0.004,26201.0,26199.0,0.069]
[1694122800763,0.004,26201.0,26198.0,0.67213499]
[1694122801000,0.004,26201.0,26198.0,0.51755322]
[1694122801001,0.264,26201.0,26198.0,0.51755322]
[1694122801250,0.264,26201.0,26198.0,0.129]
[1694122801549,0.262,26201.0,26198.0,0.104]
[1694122801804,0.264,26201.0,26199.0,0.025]
[1694122802265,0.262,26201.0,26198.0,0.104]
[1694122802735,0.26,26200.0,26198.0,0.105]
[1694122802969,0.26,26200.0,26199.0,0.024]
[1694122803261,0.004,26201.0,26198.0,0.105]
[1694122803481,0.002,26201.0,26198.0,0.105]
[1694122803710,0.26,26200.0,26198.0,0.025]
[1694122804394,0.26,26200.0,26196.0,0.08]
[1694122804620,0.57002129,26200.0,26198.0,0.024]
[1694122804873,0.4166,26200.0,26198.0,0.024]
[1694122805377,0.4166,26200.0,26198.0,0.025]
[1694122805605,0.38855322,26199.0,26198.0,0.025]
[1694122805826,0.38855322,26199.0,26198.0,0.05]
[1694122806044,0.82192654,26199.0,26198.0,0.05]
[1694122806487,0.82192654,26199.0,26198.0,0.025]
[1694122807151,0.98855322,26199.0,26198.0,0.025]
[1694122807340,0.04,26198.0,26193.0,0.08]
[1694122807580,1.03847451,26198.0,26193.0,0.08]
[1694122808009,1.03847451,26198.0,26193.0,0.10284264]
[1694122808254,0.09315705,26197.0,26193.0,0.02284264]
[1694122808481,0.15542129,26197.0,26193.0,0.03784264]
[1694122808711,0.54305322,26197.0,26193.0,0.015]
[1694122808922,0.54305322,26197.0,26193.0,0.028]
[1694122809158,0.54305322,26197.0,26193.0,0.013]
[1694122809368,0.54305322,26197.0,26191.0,0.08966177]
[1694122809586,0.70047451,26197.0,26193.0,0.021]
[1694122809779,0.64855322,26196.0,26193.0,0.021]
[1694122810503,0.64855322,26196.0,26193.0,0.044]
[1694122810504,0.34,26195.0,26193.0,0.044]
[1694122810703,0.72855322,26195.0,26193.0,0.044]
[1694122810997,0.72855322,26195.0,26193.0,0.021]
[1694122811233,0.38855322,26194.0,26193.0,0.021]
[1694122811460,0.68855322,26194.0,26193.0,0.024]
[1694122811654,0.68855322,26194.0,26193.0,0.049]
[1694122812108,0.68855322,26194.0,26193.0,0.024]
[1694122812308,0.94855322,26194.0,26189.0,0.1002]
[1694122812534,1.36262983,26194.0,26189.0,0.1002]
[1694122812764,0.04,26193.0,26189.0,0.0202]
[1694122812981,0.38855322,26192.0,26189.0,0.0202]
[1694122813198,0.38855322,26192.0,26190.0,0.02301265]
[1694122813696,0.36,26191.0,26190.0,0.02301265]
[1694122813936,0.04,26190.0,26189.0,0.0202]
[1694122814395,0.42855322,26190.0,26189.0,0.0202]
[1694122814617,0.75155322,26190.0,26189.0,0.0202]
[1694122815059,1.01155322,26190.0,26189.0,0.0202]
[1694122815280,1.01355322,26190.0,26189.0,0.0442]
[1694122815495,1.09355322,26190.0,26189.0,0.0542]
[1694122815711,1.09355322,26190.0,26189.0,0.0442]
[1694122815927,1.09455322,26190.0,26189.0,0.0542]
[1694122816164,1.05455322,26190.0,26189.0,0.0542]
[1694122816385,1.07155322,26190.0,26189.0,0.0542]
[1694122816820,1.07155322,26190.0,26189.0,0.0302]
[1694122816821,0.681,26190.0,26189.0,0.0302]
[1694122817036,0.261,26190.0,26189.0,0.0302]
[1694122817507,0.262,26190.0,26189.0,0.0452]
[1694122817717,0.262,26190.0,26189.0,0.06381917]
[1694122818378,0.65055322,26190.0,26189.0,0.06381917]
[1694122818615,0.69055322,26190.0,26189.0,0.06381917]
[1694122818974,0.95055322,26190.0,26189.0,0.0452]
[1694122819208,0.302,26190.0,26189.0,0.0452]
[1694122819557,0.002,26190.0,26189.0,0.06381917]
[1694122820401,0.262,26190.0,26189.0,0.06381917]
[1694122820602,0.56,26190.0,26189.0,0.03881917]
[1694122820803,0.561,26190.0,26189.0,0.05181917]
[1694122821019,0.561,26190.0,26189.0,0.07581917]
[1694122821228,0.561,26190.0,26189.0,0.05181917]
[1694122821499,0.56,26190.0,26189.0,0.03881917]
[1694122821738,0.562,26190.0,26189.0,0.08781917]
[1694122823546,0.002,26190.0,26189.0,1.53919337]
[1694122823744,0.35099678,26197.0,26195.0,0.08]
[1694122823745,0.26,26197.0,26195.0,0.08]
[1694122823973,0.26468,26199.0,26196.0,0.03020199]
[1694122824202,0.26,26199.0,26197.0,0.08]
[1694122824424,0.26,26199.0,26198.0,0.03020199]
[1694122824646,0.26,26199.0,26198.0,0.10856199]
[1694122824895,0.26,26199.0,26198.0,0.08106]
[1694122825107,0.26,26199.0,26198.0,0.08646]
[1694122825322,0.26,26199.0,26198.0,0.08436]
[1694122825533,0.01908397,26200.0,26198.0,0.0819]
[1694122825736,0.01908397,26200.0,26198.0,0.08472]
[1694122826209,0.01908397,26200.0,26199.0,0.06834]
[1694122826416,0.01908397,26200.0,26199.0,0.0699]
[1694122826652,0.01908397,26200.0,26198.0,0.850172]
[1694122826875,0.01908397,26200.0,26199.0,2.08498722]
[1694122827087,0.01908397,26200.0,26199.0,2.12302722]
[1694122827290,0.01908397,26200.0,26199.0,2.12446722]
[1694122827511,0.01908397,26200.0,26199.0,2.12464722]
[1694122827716,0.01908397,26200.0,26199.0,2.13776722]
[1694122827940,0.01908397,26200.0,26199.0,2.13518722]
[1694122828147,0.01908397,26200.0,26199.0,2.13198973]
[1694122828356,0.01908397,26200.0,26199.0,2.13804973]
[1694122828566,0.01908397,26200.0,26199.0,2.15722973]
[1694122828747,0.01908397,26200.0,26199.0,2.15770973]
[1694122829062,0.01908397,26200.0,26199.0,2.18198973]
[1694122829274,0.01908397,26200.0,26199.0,2.95095673]
[1694122829494,0.01908397,26200.0,26199.0,2.95923673]
[1694122829711,0.01908397,26200.0,26199.0,2.96667673]
[1694122829925,0.01908397,26200.0,26199.0,2.94683673]
[1694122830135,0.01908397,26200.0,26199.0,2.94653673]
[1694122830347,0.01908397,26200.0,26199.0,3.10751672]
[1694122830586,0.01908397,26200.0,26199.0,3.12671672]
[1694122830783,0.01908397,26200.0,26199.0,3.15147672]
[1694122830993,0.01908397,26200.0,26199.0,3.18559672]
[1694122831217,0.01908397,26200.0,26199.0,3.19639672]
[1694122831438,0.01908397,26200.0,26199.0,3.19015672]
[1694122831652,0.01908397,26200.0,26199.0,3.19447672]
[1694122831861,0.01908397,26200.0,26199.0,3.19387672]
[1694122832072,0.01908397,26200.0,26199.0,3.23137672]
[1694122832286,0.01908397,26200.0,26199.0,3.23737672]
[1694122832488,0.01908397,26200.0,26199.0,3.22333672]
[1694122832767,0.01908397,26200.0,26199.0,3.20717421]
[1694122832948,0.01908397,26200.0,26199.0,3.18169421]
[1694122833159,0.01908397,26200.0,26199.0,3.22481421]
[1694122833360,0.01908397,26200.0,26199.0,3.20453421]
[1694122833563,0.01908397,26200.0,26199.0,3.20849421]
[1694122833819,0.01908397,26200.0,26199.0,3.22409421]
[1694122834026,0.01908397,26200.0,26199.0,3.24729421]
[1694122834237,0.01908397,26200.0,26199.0,3.24249421]
[1694122834446,0.01908397,26200.0,26199.0,3.24237421]
[1694122834650,0.01908397,26200.0,26199.0,3.21629421]
[1694122834854,0.01908397,26200.0,26199.0,3.19505421]
[1694122835069,0.01908397,26200.0,26199.0,3.19613421]
[1694122835281,0.01908397,26200.0,26199.0,3.23553421]
[1694122835487,0.01908397,26200.0,26199.0,3.20573421]
[1694122835708,0.01908397,26200.0,26199.0,3.23145421]
[1694122835908,0.01908397,26200.0,26199.0,3.20693421]
[1694122836140,0.01908397,26200.0,26199.0,3.18457421]
[1694122836378,0.01908397,26200.0,26199.0,3.22493421]
[1694122836563,0.01908397,26200.0,26199.0,3.24381421]
[1694122836732,0.01908397,26200.0,26199.0,3.23517421]
[1694122836936,0.01908397,26200.0,26199.0,3.20297421]
[1694122837143,0.01908397,26200.0,26199.0,3.22845421]
[1694122837448,0.01908397,26200.0,26199.0,3.22893421]
[1694122837715,0.01908397,26200.0,26199.0,3.25281421]
[1694122837914,0.01908397,26200.0,26199.0,3.25125421]
[1694122838084,0.01908397,26200.0,26199.0,3.22377421]
[1694122838286,0.01908397,26200.0,26199.0,3.22329421]
[1694122838611,0.01908397,26200.0,26199.0,3.22305421]
[1694122838835,0.01908397,26200.0,26199.0,3.23253421]
[1694122839057,0.01908397,26200.0,26199.0,3.23565421]
[1694122839279,0.01908397,26200.0,26199.0,3.23625421]
[1694122839496,0.01908397,26200.0,26199.0,3.23481421]
[1694122839715,0.01908397,26200.0,26199.0,3.22581421]
[1694122839930,0.01908397,26200.0,26199.0,3.26745421]
[1694122840175,0.01908397,26200.0,26199.0,3.25329421]
[1694122840365,0.01908397,26200.0,26199.0,3.25053421]
[1694122840492,0.01908397,26200.0,26199.0,3.23529421]
[1694122840697,0.01908397,26200.0,26199.0,3.23625421]
[1694122840923,0.01908397,26200.0,26199.0,3.25065421]
[1694122841142,0.01908397,26200.0,26199.0,3.24405421]
[1694122841348,0.01908397,26200.0,26199.0,3.24441421]
[1694122841583,0.01908397,26200.0,26199.0,3.24633421]
[1694122841791,0.01908397,26200.0,26199.0,3.23793421]
[1694122842000,0.01908397,26200.0,26199.0,3.23745421]
[1694122842220,0.01908397,26200.0,26199.0,3.25917421]
[1694122842430,0.01908397,26200.0,26199.0,3.25965421]
[1694122842649,0.01908397,26200.0,26199.0,3.25701421]
[1694122842848,0.01908397,26200.0,26199.0,3.25713421]
[1694122843058,0.01908397,26200.0,26199.0,3.29325421]
[1694122843303,0.01908397,26200.0,26199.0,3.27897421]
[1694122843545,0.01908397,26200.0,26199.0,3.57777421]
[1694122843758,0.01908397,26200.0,26199.0,3.58161421]
[1694122844028,0.01908397,26200.0,26199.0,3.98543421]
[1694122844234,0.01908397,26200.0,26199.0,3.97415421]
[1694122844506,0.01908397,26200.0,26199.0,3.97475421]
[1694122844752,0.01908397,26200.0,26199.0,3.97583421]
[1694122845015,0.01908397,26200.0,26199.0,3.94963421]
[1694122845295,0.01908397,26200.0,26199.0,3.95191421]
[1694122845482,0.01908397,26200.0,26199.0,3.95167421]
[1694122845709,0.01908397,26200.0,26199.0,3.95035421]
[1694122845910,0.09099678,26209.0,26204.0,0.11999999]
[1694122846122,0.923554,26210.0,26205.0,2.70834921]
[1694122846386,0.1634,26209.0,26205.0,0.09942]
[1694122846585,0.4234,26209.0,26204.0,0.23075999]
[1694122846783,0.4234,26209.0,26205.0,0.763211]
[1694122846957,0.4234,26209.0,26205.0,0.831011]
[1694122847157,0.1634,26209.0,26206.0,0.45683322]
[1694122847359,0.1634,26209.0,26207.0,2.289462]
[1694122847558,0.1634,26209.0,26207.0,2.75049522]
[1694122847781,0.1634,26209.0,26207.0,1.98620122]
[1694122848001,0.1634,26209.0,26207.0,1.91486122]
[1694122848428,0.1634,26209.0,26207.0,1.98572122]
[1694122848597,0.1634,26209.0,26207.0,1.98524122]
[1694122848804,0.1634,26209.0,26208.0,0.38855322]
[1694122849003,0.1634,26209.0,26208.0,1.98188322]
[1694122849210,0.1634,26209.0,26208.0,1.98578322]
[1694122849416,0.1634,26209.0,26208.0,1.99118322]
[1694122849795,0.1634,26209.0,26208.0,1.98998322]
[1694122849997,0.1634,26209.0,26208.0,2.75838822]
[1694122850201,0.1634,26209.0,26208.0,2.79016822]
[1694122850407,0.1634,26209.0,26208.0,2.79748822]
[1694122850610,0.1634,26209.0,26208.0,2.82602822]
[1694122850826,0.1634,26209.0,26208.0,2.82656822]
[1694122851027,0.1634,26209.0,26208.0,2.82680822]
[1694122851222,0.1634,26209.0,26208.0,2.83556822]
[1694122851478,0.1634,26209.0,26208.0,2.87616821]
[1694122851690,0.1634,26209.0,26208.0,2.82454821]
[1694122851935,0.1634,26209.0,26208.0,2.85868821]
[1694122852143,0.4234,26209.0,26208.0,2.90772821]
[1694122852354,0.4234,26209.0,26208.0,2.88770821]
[1694122852559,0.4234,26209.0,26208.0,2.86474821]
[1694122852734,0.4234,26209.0,26208.0,2.85852821]
[1694122852975,0.1634,26209.0,26208.0,2.86194821]
[1694122853194,0.1634,26209.0,26208.0,2.87304821]
[1694122853411,0.30681131,26221.0,26210.0,0.03798]
[1694122853412,0.26,26213.0,26210.0,0.03798]
[1694122853639,0.1601,26213.0,26211.0,2.67761022]
[1694122853869,0.1601,26213.0,26211.0,2.81327022]
[1694122854136,0.1601,26213.0,26211.0,2.82125022]
[1694122854327,0.1601,26213.0,26212.0,0.14016]
[1694122854555,0.1601,26213.0,26212.0,2.81552022]
[1694122854790,0.1601,26213.0,26212.0,2.81672022]
[1694122855024,0.1601,26213.0,26212.0,2.81678022]
[1694122855268,0.1601,26213.0,26212.0,2.97454021]
[1694122855505,0.1601,26213.0,26212.0,2.97796021]
[1694122855735,0.1601,26213.0,26212.0,3.00266021]
[1694122855959,0.1601,26213.0,26212.0,3.02226021]
[1694122856192,0.1601,26213.0,26212.0,3.02370021]
[1694122856399,0.1601,26213.0,26212.0,3.02598021]
[1694122856659,0.1601,26213.0,26212.0,3.02328021]
[1694122856882,0.1601,26213.0,26212.0,3.02310021]
[1694122857110,0.1601,26213.0,26212.0,3.02352021]
[1694122857548,0.1601,26213.0,26212.0,3.02382021]
[1694122857773,0.1601,26213.0,26212.0,3.02196021]
[1694122858039,0.1601,26213.0,26212.0,3.02256021]
[1694122858040,0.4201,26213.0,26212.0,3.02256021]
[1694122858264,0.4201,26213.0,26212.0,3.02136021]
[1694122858469,0.4201,26213.0,26212.0,3.01956021]
[1694122858703,0.4201,26213.0,26212.0,3.02802021]
[1694122858940,0.4201,26213.0,26212.0,3.02808021]
[1694122859178,0.4201,26213.0,26212.0,3.03168021]
[1694122859407,0.1601,26213.0,26212.0,3.02244021]
[1694122859637,0.1601,26213.0,26212.0,3.02898021]
[1694122859837,0.1601,26213.0,26212.0,3.02892021]
[1694122860067,0.1601,26213.0,26212.0,3.19152021]
[1694122860296,0.1601,26213.0,26212.0,4.00544921]
[1694122860542,0.1955,26216.0,26212.0,4.00544921]
[1694122860543,0.1955,26216.0,26214.0,0.03999999]
[1694122860742,0.1562,26215.0,26214.0,0.03999999]
[1694122861169,0.1562,26215.0,26214.0,3.40794399]
[1694122861396,0.1562,26215.0,26214.0,3.40890399]
[1694122861635,0.1562,26215.0,26214.0,3.43282399]
[1694122861875,0.154,26218.0,26214.0,3.45406399]
[1694122862114,0.154,26218.0,26214.0,3.47906399]
[1694122862356,0.154,26218.0,26215.0,0.1611]
[1694122862609,0.154,26218.0,26216.0,3.051568]
[1694122862838,0.154,26218.0,26217.0,0.03798]
[1694122863055,0.154,26218.0,26217.0,2.419689]
[1694122863261,0.154,26218.0,26217.0,2.421849]
[1694122863519,0.154,26218.0,26217.0,2.81022222]
[1694122863731,0.154,26218.0,26217.0,2.81292222]
[1694122863953,0.154,26218.0,26217.0,2.81562222]
[1694122864158,0.154,26218.0,26217.0,2.81826222]
[1694122864612,0.154,26218.0,26217.0,2.81730222]
[1694122864804,0.154,26218.0,26217.0,2.81376222]
[1694122865016,0.154,26218.0,26217.0,2.81364222]
[1694122865235,0.154,26218.0,26217.0,2.81226222]
[1694122865477,0.154,26218.0,26217.0,2.82162222]
[1694122865708,0.154,26218.0,26217.0,2.82144222]
[1694122865920,0.154,26218.0,26217.0,2.85214222]
[1694122866139,0.154,26218.0,26217.0,2.89366221]
[1694122866359,0.154,26218.0,26217.0,3.04456221]
[1694122866586,0.154,26218.0,26217.0,3.06620221]
[1694122866834,0.154,26218.0,26217.0,3.06674221]
[1694122867055,0.154,26218.0,26217.0,3.06668221]
[1694122867275,0.154,26218.0,26217.0,3.03670221]
[1694122867487,0.154,26218.0,26217.0,3.06158221]
[1694122867708,0.154,26218.0,26217.0,3.06194221]
[1694122867927,0.154,26218.0,26217.0,3.06188221]
[1694122868146,0.154,26218.0,26217.0,3.06248221]
[1694122868385,0.154,26218.0,26217.0,3.06284221]
[1694122868571,0.154,26218.0,26217.0,3.06314221]
[1694122869017,0.154,26218.0,26217.0,3.06452221]
[1694122869230,0.154,26218.0,26217.0,3.06224221]
[1694122869459,0.26,26219.0,26218.0,0.13999999]
[1694122869706,0.26,26219.0,26218.0,2.85503521]
[1694122869927,0.26,26219.0,26218.0,2.95601521]
[1694122870140,0.26,26219.0,26218.0,2.81571522]
[1694122870363,0.26,26219.0,26218.0,2.93397521]
[1694122870578,0.154,26220.0,26219.0,0.01999999]
[1694122870803,0.154,26220.0,26219.0,2.69696821]
[1694122871053,0.154,26220.0,26219.0,2.78732821]
[1694122871271,0.154,26220.0,26219.0,2.78576821]
[1694122871529,0.154,26220.0,26219.0,2.82266821]
[1694122871786,0.154,26220.0,26219.0,2.84844821]
[1694122872028,0.154,26220.0,26219.0,2.84700821]
[1694122872267,0.154,26220.0,26219.0,2.82686821]
[1694122872506,0.154,26220.0,26219.0,2.82638821]
[1694122872749,0.414,26220.0,26219.0,2.84760821]
[1694122872980,0.414,26220.0,26219.0,2.82032821]
[1694122873181,0.414,26220.0,26219.0,2.84994821]
[1694122873407,0.414,26220.0,26219.0,2.85264821]
[1694122873669,0.154,26220.0,26219.0,2.89234821]
[1694122873907,0.154,26220.0,26219.0,2.89282821]
[1694122874104,0.154,26220.0,26219.0,2.88976821]
[1694122874309,0.154,26220.0,26219.0,2.88940821]
[1694122874513,0.154,26220.0,26219.0,2.88136821]
[1694122874729,0.154,26220.0,26219.0,2.88196821]
[1694122875011,0.154,26220.0,26219.0,2.78494821]
[1694122875263,0.154,26220.0,26219.0,2.02214321]
[1694122875949,0.154,26220.0,26219.0,2.78494821]
[1694122876571,0.154,26220.0,26219.0,2.76494822]
[1694122876845,0.154,26220.0,26219.0,2.02214321]
[1694122877014,0.154,26220.0,26219.0,1.97214321]
[1694122877216,0.154,26220.0,26219.0,1.99714321]
[1694122877417,0.154,26220.0,26219.0,2.02214321]
[1694122878000,0.154,26220.0,26219.0,1.25933821]
[1694122878206,0.15359577,26220.0,26219.0,1.25933821]
[1694122878432,0.15359577,26220.0,26219.0,1.23433821]
[1694122878846,0.15359577,26220.0,26219.0,1.25933821]
[1694122880764,0.15359577,26220.0,26219.0,2.02214321]
[1694122881594,0.15359577,26220.0,26219.0,2.08766321]
[1694122881801,0.15359577,26220.0,26219.0,2.08778321]
[1694122882012,0.15359577,26220.0,26219.0,2.02214321]
[1694122882753,0.15359577,26220.0,26219.0,2.78494821]
[1694122883370,0.15359577,26220.0,26219.0,2.85532821]
[1694122883576,0.15359577,26220.0,26219.0,2.85514821]
[1694122883741,0.15359577,26220.0,26219.0,2.85550821]
[1694122884133,0.15359577,26220.0,26219.0,2.85580821]
[1694122884360,0.15359577,26220.0,26219.0,2.85586821]
[1694122884606,0.15359577,26220.0,26219.0,2.85610821]
[1694122884869,0.15359577,26220.0,26219.0,2.85640821]
[1694122885076,0.15359577,26220.0,26219.0,2.85790821]
[1694122885304,0.15359577,26220.0,26219.0,2.85772821]
[1694122885536,0.15359577,26220.0,26219.0,2.83790822]
[1694122885771,0.15359577,26220.0,26219.0,2.85694821]
[1694122886013,0.15359577,26220.0,26219.0,2.85646821]
[1694122886260,0.15359577,26220.0,26219.0,2.85538821]
[1694122886497,0.15359577,26220.0,26219.0,2.85784821]
[1694122886698,0.15359577,26220.0,26219.0,2.85982821]
[1694122886956,0.15359577,26220.0,26219.0,2.85934821]
[1694122887189,0.15359577,26220.0,26219.0,2.85910821]
[1694122887428,0.15359577,26220.0,26219.0,2.85934821]
[1694122887896,0.15359577,26220.0,26219.0,1.33229821]
[1694122888126,0.15359577,26220.0,26219.0,1.99714321]
[1694122888385,0.15359577,26220.0,26219.0,1.97214321]
[1694122888590,0.15359577,26220.0,26219.0,2.06242321]
[1694122888757,0.15359577,26220.0,26219.0,2.03778321]
[1694122889028,0.15350955,26220.0,26219.0,2.06302321]
[1694122889201,0.15350955,26220.0,26219.0,2.06308321]
[1694122889607,0.15350955,26220.0,26219.0,2.06374321]
[1694122889877,0.15350955,26220.0,26219.0,2.08856321]
[1694122890084,0.15350955,26220.0,26219.0,2.08880321]
[1694122890351,0.15350955,26220.0,26219.0,2.06386321]
[1694122890520,0.15350955,26220.0,26219.0,2.08718321]
[1694122890724,0.15350955,26220.0,26219.0,2.08778321]
[1694122890927,0.15350955,26220.0,26219.0,2.02214321]
[1694122892202,0.15350955,26220.0,26219.0,2.02281177]
[1694122892892,0.15350955,26220.0,26219.0,2.08803177]
[1694122893336,0.15350955,26220.0,26219.0,2.08959177]
[1694122893578,0.15350955,26220.0,26219.0,2.08851177]
[1694122893808,0.15350955,26220.0,26219.0,2.02281177]
[1694122894037,0.15350955,26220.0,26219.0,2.85941677]
[1694122894234,0.15350955,26220.0,26219.0,2.86037677]
[1694122894461,0.15350955,26220.0,26219.0,2.85755677]
[1694122894691,0.15350955,26220.0,26219.0,2.85737677]
[1694122894919,0.15350955,26220.0,26219.0,2.85731677]
[1694122895413,0.24460048,26220.0,26219.0,2.85725677]
[1694122895617,0.24460048,26220.0,26219.0,2.85707677]
[1694122895851,0.24460048,26220.0,26219.0,2.85713677]
[1694122896052,0.24460048,26220.0,26219.0,2.85707677]
[1694122896277,0.24460048,26220.0,26219.0,2.85713677]
[1694122896489,0.24460048,26220.0,26219.0,2.85593677]
[1694122896762,0.24460048,26220.0,26219.0,2.85719677]
[1694122897000,0.24460048,26220.0,26219.0,2.85545677]
[1694122897238,0.24460048,26220.0,26219.0,2.85509677]
[1694122897482,0.24460048,26220.0,26219.0,2.85437677]
[1694122897734,0.24460048,26220.0,26219.0,2.85323677]
[1694122897967,0.09109093,26220.0,26219.0,2.86403677]
[1694122898193,0.09109093,26220.0,26219.0,2.86301677]
[1694122898385,0.1366364,26220.0,26219.0,2.86391677]
[1694122898594,0.1366364,26220.0,26219.0,2.86445677]
[1694122898733,0.1366364,26220.0,26219.0,2.86409677]
[1694122899434,0.1366364,26220.0,26219.0,2.86277677]
[1694122899638,0.1366364,26220.0,26219.0,2.86253677]
[1694122899848,0.1366364,26220.0,26219.0,2.86241677]
[1694122900078,0.1366364,26220.0,26219.0,2.86187677]
[1694122900301,0.09145692,26221.0,26219.0,2.86205677]
[1694122900500,0.09145692,26221.0,26220.0,0.42653322]
[1694122900645,0.09145692,26221.0,26220.0,2.71486122]
[1694122901031,0.09145692,26221.0,26220.0,2.71552184]
[1694122901770,0.09145692,26221.0,26220.0,2.74052184]
[1694122901991,0.22809332,26221.0,26220.0,2.74052184]
[1694122902241,0.09145692,26221.0,26220.0,2.74052184]
[1694122902441,0.22809332,26221.0,26220.0,2.74052184]
[1694122903178,0.1366364,26221.0,26220.0,2.74052184]
[1694122903392,0.1366364,26221.0,26220.0,2.76552184]
[1694122904349,0.31881826,26221.0,26220.0,2.76552184]
[1694122904832,0.1366364,26221.0,26220.0,2.76552184]
[1694122905289,0.31881826,26221.0,26220.0,2.76552184]
[1694122905522,0.18218186,26221.0,26220.0,2.74052184]
[1694122905755,0.31947658,26221.0,26220.0,2.74052184]
[1694122906190,0.31947658,26221.0,26220.0,2.76552184]
[1694122906454,0.18218186,26221.0,26220.0,2.74052184]
[1694122906673,0.18218186,26221.0,26220.0,2.76552184]
[1694122906674,0.31947324,26221.0,26220.0,2.76552184]
[1694122906897,0.18218186,26221.0,26220.0,2.76552184]
[1694122907130,0.32034542,26221.0,26220.0,2.76552184]
[1694122907365,0.32034542,26221.0,26220.0,2.74052184]
[1694122907806,0.32034542,26221.0,26220.0,2.76552184]
[1694122907999,0.32034542,26221.0,26220.0,2.74052184]
[1694122908202,0.32034542,26221.0,26220.0,2.76552184]
[1694122908459,0.32034542,26221.0,26220.0,0.47719384]
[1694122908695,0.32034542,26221.0,26220.0,0.45219384]
[1694122908696,0.18305455,26221.0,26220.0,0.45219384]
[1694122908889,0.18305455,26221.0,26220.0,0.47719384]
[1694122908890,0.37537165,26221.0,26220.0,0.47719384]
[1694122909420,0.60418984,26221.0,26220.0,0.47719384]
[1694122909878,0.37537165,26221.0,26220.0,0.47719384]
[1694122910534,0.60418984,26221.0,26220.0,0.47719384]
[1694122911938,0.60418984,26221.0,26220.0,0.45219384]
[1694122912411,0.37537165,26221.0,26220.0,2.08518584]
[1694122912648,0.37537165,26221.0,26220.0,2.06126584]
[1694122912888,0.37537165,26221.0,26220.0,2.84790184]
[1694122913121,0.37537165,26221.0,26220.0,2.84838184]
[1694122913368,0.37537165,26221.0,26220.0,2.85042184]
[1694122913602,0.37537165,26221.0,26220.0,2.85048184]
[1694122913850,0.37537165,26221.0,26220.0,2.84778184]
[1694122914082,0.37537165,26221.0,26220.0,2.84730184]
[1694122914318,0.37537165,26221.0,26220.0,2.84286184]
[1694122914559,0.60418984,26221.0,26220.0,2.84568184]
[1694122914808,0.60418984,26221.0,26220.0,2.84544184]
[1694122915039,0.60418984,26221.0,26220.0,2.84616184]
[1694122915157,0.60418984,26221.0,26220.0,2.84388184]
[1694122915383,0.60418984,26221.0,26220.0,2.84346184]
[1694122915607,0.60418984,26221.0,26220.0,2.84358184]
[1694122915842,0.60418984,26221.0,26220.0,2.84364184]
[1694122916084,0.60418984,26221.0,26220.0,2.86944184]
[1694122916324,0.37537165,26221.0,26220.0,2.87208184]
[1694122916546,0.37537165,26221.0,26220.0,2.87172184]
[1694122916773,0.60418984,26221.0,26220.0,2.87208184]
[1694122916993,0.60418984,26221.0,26220.0,2.87196184]
[1694122917204,0.60418984,26221.0,26220.0,2.87154184]